fUST/lending_fUST_20240207
["ID","MTS","AMOUNT","RATE_DAILY","PERIOD"]
[313387156,1707256244467,-4517.9,0.00028292,3]
[313387157,1707256244476,-1022.33,0.00028292,3]
[313387158,1707256244485,-635.89,0.00028292,3]
[313387159,1707256244494,-500.0,0.00028321,3]
[313387160,1707256244502,-500.0,0.00028321,3]
[313387161,1707256244511,-2185.34,0.00028321,3]
[313387162,1707256244520,-500.0,0.00028321,3]
[313387163,1707256244529,-500.0,0.00028321,3]
[313387164,1707256244538,-844.75,0.00028321,3]
[313387165,1707256244548,-791.8,0.00028321,3]
[313387166,1707256244556,-1139.91,0.00028321,3]
[313387167,1707256244565,-500.0,0.00028321,3]
[313387168,1707256244575,-1966.62,0.00028321,3]
[313387169,1707256244584,-2020.78,0.00028321,3]
[313387170,1707256244593,-933.3,0.00028321,3]
[313387171,1707256244602,-18283.51169343,0.00028343,5]
[313387172,1707256244613,-500.0,0.00028357,3]
[313387173,1707256244624,-621.24,0.00028357,3]
[313387174,1707256244633,-622.72,0.00028357,3]
[313387175,1707256244642,-500.0,0.00028357,3]
[313387176,1707256244652,-598.34160813,0.00028357,3]
[313387177,1707256244661,-500.0,0.00028357,3]
[313387178,1707256244671,-500.0,0.00028357,2]
[313387179,1707256244680,-500.0,0.00028357,3]
[313387180,1707256244690,-153.0,0.00028493,2]
[313387181,1707256244700,-199.8729763,0.00028493,2]
[313387182,1707256244709,-153.0,0.00028493,2]
[313387183,1707256244718,-371.2448491,0.00028493,2]
[313387184,1707256244728,-153.0,0.00028493,2]
[313387185,1707256244737,-153.0,0.00028493,2]
[313387186,1707256244746,-153.0,0.00028493,2]
[313387187,1707256244756,-199.8729763,0.00028493,2]
[313387188,1707256244765,-153.0,0.00028493,2]
[313387189,1707256244776,-153.0,0.00028493,2]
[313387190,1707256244786,-153.0,0.00028493,2]
[313387191,1707256244795,-199.351588,0.00028493,2]
[313387192,1707256244805,-153.0,0.00028493,2]
[313387193,1707256244814,-500.0,0.0002852,3]
[313387194,1707256244823,-5028.93,0.0002852,3]
[313387195,1707256244832,-2642.83,0.00028521,3]
[313387196,1707256244842,-500.0,0.00028521,3]
[313387197,1707256244852,-10088.85,0.00028521,3]
[313387198,1707256244861,-500.0,0.00028566,3]
[313387199,1707256244870,-500.0,0.00028566,3]
[313387200,1707256244879,-538.55,0.00028566,3]
[313387201,1707256244888,-668.42,0.00028566,3]
[313387202,1707256244897,-996.59,0.00028566,3]
[313387203,1707256244907,-2910.26,0.00028566,3]
[313387204,1707256244916,-4517.9,0.00028566,3]
[313387205,1707256244926,-1022.33,0.00028566,3]
[313387206,1707256244936,-635.89,0.00028566,3]
[313387207,1707256244947,-500.0,0.00028595,3]
[313387208,1707256244956,-500.0,0.00028595,3]
[313387209,1707256244968,-2185.34,0.00028595,3]
[313387210,1707256244977,-500.0,0.00028595,3]
[313387211,1707256244986,-500.0,0.00028595,3]
[313387212,1707256244995,-844.75,0.00028595,3]
[313387213,1707256245005,-791.8,0.00028595,3]
[313387214,1707256245014,-1139.91,0.00028595,3]
[313387215,1707256245023,-500.0,0.00028595,3]
[313387216,1707256245032,-1966.62,0.00028595,3]
[313387217,1707256245042,-2020.78,0.00028595,3]
[313387218,1707256245050,-933.3,0.00028595,3]
[313387219,1707256245061,-500.0,0.00028631,3]
[313387220,1707256245070,-621.24,0.00028631,3]
[313387221,1707256245080,-622.72,0.00028631,3]
[313387222,1707256245089,-293.05051676,0.00028631,3]
[313387223,1707256245178,-500.0,0.00028631,3]
[313387224,1707256245188,-500.0,0.00028631,2]
[313387225,1707256245198,-500.0,0.00028631,3]
[313387226,1707256245206,-500.0,0.00028794,3]
[313387227,1707256245215,-5028.93,0.00028794,3]
[313387228,1707256245224,-2642.83,0.00028795,3]
[313387229,1707256245233,-500.0,0.00028795,3]
[313387230,1707256245242,-10088.85,0.00028795,3]
[313387231,1707256245251,-621.12767117,0.00028798,2]
[313387232,1707256245262,-500.0,0.0002884,3]
[313387233,1707256245273,-500.0,0.0002884,3]
[313387234,1707256245283,-538.55,0.0002884,3]
[313387235,1707256245294,-668.42,0.0002884,3]
[313387236,1707256245304,-996.59,0.0002884,3]
[313387237,1707256245315,-2910.26,0.0002884,3]
[313387238,1707256245325,-4517.9,0.0002884,3]
[313387239,1707256245334,-1022.33,0.0002884,3]
[313387240,1707256245343,-635.89,0.0002884,3]
[313387241,1707256245352,-500.0,0.00028869,3]
[313387242,1707256245366,-500.0,0.00028869,3]
[313387243,1707256245375,-2185.34,0.00028869,3]
[313387244,1707256245385,-500.0,0.00028869,3]
[313387245,1707256245395,-500.0,0.00028869,3]
[313387246,1707256245406,-844.75,0.00028869,3]
[313387247,1707256245416,-791.8,0.00028869,3]
[313387248,1707256245425,-1139.91,0.00028869,3]
[313387249,1707256245434,-500.0,0.00028869,3]
[313387250,1707256245443,-1966.62,0.00028869,3]
[313387251,1707256245452,-2020.78,0.00028869,3]
[313387252,1707256245462,-933.3,0.00028869,3]
[313387253,1707256245472,-999.0,0.000289,2]
[313387254,1707256245481,-500.0,0.00028905,3]
[313387255,1707256245490,-621.24,0.00028905,3]
[313387256,1707256245499,-622.72,0.00028905,3]
[313387257,1707256245507,-500.0,0.00028905,3]
[313387258,1707256245516,-500.0,0.00028905,2]
[313387259,1707256245525,-500.0,0.00028905,3]
[313387260,1707256245535,-3000.0,0.00029,2]
[313387261,1707256245544,-155.04961588,0.00029,2]
[313387262,1707256245553,-500.0,0.00029,5]
[313387263,1707256245562,-8827.3284547,0.00029,2]
[313387264,1707256245572,-166.09077311,0.00029,2]
[313387265,1707256245581,-454.77574725,0.00029,2]
[313387266,1707256245590,-39390.0782018,0.00029,2]
[313387298,1707256246672,-357.16923845,0.00027944,2]
[313387300,1707256246682,-641.6828027,0.00027944,2]
[313387302,1707256246691,-155.02635448,0.00027944,4]
[313387304,1707256246701,-1916.46,0.00028556,3]
[313387306,1707256246711,-738.04839919,0.00029,2]
[313387308,1707256246722,-7924.84399921,0.00029,2]
[313387349,1707256989231,1866.0,0.00029,30]
[313387380,1707257431781,-640.24322624,0.00024481,2]
[313387381,1707257431790,-387.53130135,0.00024482,2]
[313387382,1707257431800,-155.02170304,0.00024483,4]
[313387383,1707257431809,-6617.16186062,0.00024526,2]
[313387384,1707257431818,-186.48892667,0.00024526,2]
[313387385,1707257431827,-1278.84697696,0.00024526,2]
[313387386,1707257431836,-341.02586053,0.00024526,2]
[313387387,1707257431845,-1686.61513347,0.00024754,2]
[313387388,1707257431857,-1914.68161629,0.00024754,2]
[313387396,1707257437958,-13156.81933719,0.00024754,2]
[313387400,1707257438015,-8141.88391305,0.00024754,2]
[313387401,1707257438024,-160.31740651,0.00025535,2]
[313387402,1707257438034,-463.86035349,0.00025635,2]
[313387403,1707257438043,-524.13097261,0.00025635,2]
[313387404,1707257438052,-202.94298256,0.00025635,2]
[313387405,1707257438062,-200.0,0.00026978,15]
[313387406,1707257438072,-1597.05,0.00027412,3]
[313387407,1707257438081,-1330.87,0.00027412,3]
[313387408,1707257438090,-1109.06,0.00027412,3]
[313387409,1707257438099,-924.22,0.00027415,3]
[313387410,1707257438109,-2121.81,0.0002742,3]
[313387411,1707257438119,-500.0,0.0002742,3]
[313387412,1707257438128,-3912.95,0.0002742,3]
[313387413,1707257438137,-7785.57,0.0002742,3]
[313387415,1707257438146,-500.0,0.0002742,3]
[313387416,1707257438155,-500.0,0.00027421,3]
[313387417,1707257438271,-500.0,0.00027421,3]
[313387418,1707257438281,-500.0,0.00027421,3]
[313387419,1707257438290,-500.0,0.00027421,3]
[313387420,1707257438299,-1702.22,0.00027421,3]
[313387421,1707257438308,-500.0,0.00027421,3]
[313387422,1707257438317,-500.0,0.00027421,3]
[313387423,1707257438326,-660.88,0.00027421,3]
[313387424,1707257438335,-631.3,0.00027421,3]
[313387425,1707257438345,-500.0,0.00027421,3]
[313387426,1707257438354,-958.01,0.00027421,3]
[313387427,1707257438363,-500.0,0.00027421,3]
[313387428,1707257438372,-1530.65,0.00027421,3]
[313387429,1707257438381,-1573.67,0.00027421,3]
[313387430,1707257438390,-743.95,0.00027421,3]
[313387431,1707257438399,-369.15726056,0.00027422,3]
[313387432,1707257438407,-500.0,0.00027422,3]
[313387433,1707257438416,-500.0,0.00027422,3]
[313387434,1707257438426,-500.0,0.00027422,3]
[313387435,1707257438435,-500.0,0.00027422,3]
[313387436,1707257438444,-500.0,0.00027422,3]
[313387437,1707257438453,-507.14192203,0.00027422,3]
[313387438,1707257438462,-500.0,0.00027422,3]
[313387439,1707257438471,-500.0,0.00027422,3]
[313387440,1707257438480,-563.42,0.00027422,3]
[313387441,1707257438489,-852.89,0.00027422,3]
[313387442,1707257438498,-500.0,0.00027422,3]
[313387443,1707257438507,-2433.88,0.00027422,3]
[313387444,1707257438517,-500.0,0.00027422,3]
[313387445,1707257438527,-3806.27,0.00027422,3]
[313387446,1707257438536,-841.26,0.00027422,3]
[313387447,1707257438545,-524.25,0.00027422,3]
[313387448,1707257438554,-527.29,0.00027424,3]
[313387449,1707257438563,-513.82,0.00027424,3]
[313387450,1707257438573,-500.0,0.00027424,3]
[313387451,1707257438583,-500.0,0.00027425,3]
[313387452,1707257438592,-500.0,0.00027425,3]
[313387453,1707257438601,-500.0,0.00027425,3]
[313387454,1707257438610,-500.0,0.00027425,3]
[313387455,1707257438619,-500.0,0.00027425,2]
[313387456,1707257438628,-2121.81,0.00027694,3]
[313387457,1707257438637,-500.0,0.00027694,3]
[313387458,1707257438646,-3912.95,0.00027694,3]
[313387459,1707257438656,-7785.57,0.00027694,3]
[313387460,1707257438665,-500.0,0.00027695,3]
[313387461,1707257438673,-500.0,0.00027695,3]
[313387462,1707257438682,-500.0,0.00027695,3]
[313387463,1707257438692,-1702.22,0.00027695,3]
[313387464,1707257438701,-500.0,0.00027695,3]
[313387465,1707257438710,-500.0,0.00027695,3]
[313387466,1707257438719,-660.88,0.00027695,3]
[313387467,1707257438728,-631.3,0.00027695,3]
[313387468,1707257438741,-958.01,0.00027695,3]
[313387469,1707257438750,-500.0,0.00027695,3]
[313387470,1707257438759,-1497.88472113,0.00027695,3]
[313387477,1707257440969,-32.76527887,0.00027695,3]
[313387478,1707257440978,-1573.67,0.00027695,3]
[313387479,1707257440987,-743.95,0.00027695,3]
[313387480,1707257440997,-500.0,0.00027696,3]
[313387481,1707257441006,-500.0,0.00027696,3]
[313387482,1707257441015,-500.0,0.00027696,3]
[313387483,1707257441024,-500.0,0.00027696,3]
[313387485,1707257441033,-563.42,0.00027696,3]
[313387487,1707257441042,-852.89,0.00027696,3]
[313387489,1707257441051,-500.0,0.00027696,3]
[313387491,1707257441060,-2433.88,0.00027696,3]
[313387493,1707257441069,-539.4784035,0.00027696,3]
[313387495,1707257441081,-1926.40816408,0.00027696,3]
[313387504,1707257442846,-1340.38343242,0.00027696,3]
[313387505,1707257442855,-353.85303287,0.00027696,3]
[313387506,1707257442867,-487.40696713,0.00027696,3]
[313387507,1707257442877,-524.25,0.00027696,3]
[313387508,1707257442886,-527.29,0.00027698,3]
[313387509,1707257442895,-513.82,0.00027698,3]
[313387510,1707257442905,-500.0,0.00027698,3]
[313387511,1707257442914,-500.0,0.00027699,3]
[313387512,1707257442923,-500.0,0.00027699,2]
[313387513,1707257442932,-236.95035324,0.00027708,2]
[313387514,1707257442941,-228.74237114,0.00027708,2]
[313387515,1707257442951,-3788.87367712,0.00027709,2]
[313387516,1707257442962,-9728.63603502,0.00027709,2]
[313387536,1707257445856,-155.02170304,0.00027708,4]
[313387537,1707257445866,-11961.02636184,0.00027709,2]
[313387538,1707257445877,-3991.35859978,0.00027709,2]
[313387539,1707257445910,-1360.34124795,0.00027709,2]
[313387541,1707257445921,-405.558866,0.00027709,2]
[313387610,1707258517100,499.0,0.00018,2]
[313387667,1707258631976,-155.02170304,0.00023383,4]
[313387668,1707258631997,-357.77400353,0.00023383,2]
[313387669,1707258632011,-100.72377614,0.00023384,2]
[313387670,1707258632033,-508.81225015,0.00023384,2]
[313387671,1707258632044,-387.53130135,0.00023384,2]
[313387672,1707258632056,-4243.23729698,0.00023391,2]
[313387706,1707258638043,-3394.13747549,0.00023391,2]
[313387712,1707258638098,-260.29428997,0.00023391,2]
[313387713,1707258638121,-12149.17453496,0.00023391,2]
[313387714,1707258638132,-1659.27,0.00024522,3]
[313387715,1707258638144,-1382.73,0.00024522,3]
[313387716,1707258638155,-63111.13397326,0.00024532,2]
[313387717,1707258638167,-1928.60433853,0.00024538,2]
[313387718,1707258638180,-3498.19003219,0.00024538,2]
[313387719,1707258638194,-1521.62343863,0.00024538,2]
[313387720,1707258638208,-6652.32132272,0.00024538,2]
[313387722,1707258638221,-1143.41426433,0.0002455,2]
[313387726,1707258638233,-174.71032421,0.00025641,2]
[313387728,1707258638246,-269.60190971,0.00025647,2]
[313387731,1707258638256,-200.0,0.00026497,15]
[313387733,1707258638267,-3000.0,0.000269,2]
[313387735,1707258638278,-500.0,0.00027397,3]
[313387736,1707258638289,-500.0,0.00027397,3]
[313387737,1707258638300,-500.0,0.00027397,3]
[313387738,1707258638312,-203.95580629,0.00027397,3]
[313387739,1707258638323,-500.0,0.00027397,3]
[313387740,1707258638334,-500.0,0.00027397,3]
[313387741,1707258638345,-500.0,0.00027397,3]
[313387742,1707258638355,-500.0,0.00027397,3]
[313387743,1707258638366,-500.0,0.00027397,3]
[313387744,1707258638377,-500.0,0.00027397,3]
[313387745,1707258638388,-500.0,0.00027397,3]
[313387746,1707258638398,-500.0,0.00027397,3]
[313387747,1707258638408,-500.0,0.00027397,3]
[313387748,1707258638419,-1499.86,0.00027397,3]
[313387749,1707258638430,-541.43161905,0.00027397,3]
[313387750,1707258638440,-767.98,0.00027397,3]
[313387751,1707258638450,-500.0,0.00027397,3]
[313387752,1707258638461,-500.0,0.00027397,3]
[313387753,1707258638471,-500.0,0.00027397,3]
[313387754,1707258638481,-500.0,0.00027397,3]
[313387755,1707258638492,-500.0,0.00027397,3]
[313387756,1707258638501,-908.77,0.00027397,3]
[313387757,1707258638512,-583.9,0.00027397,3]
[313387758,1707258638522,-1686.06,0.00027397,3]
[313387759,1707258638532,-500.0,0.00027397,3]
[313387760,1707258638542,-500.0,0.00027397,3]
[313387761,1707258638553,-2490.68,0.00027397,3]
[313387762,1707258638563,-2233.19,0.00027397,3]
[313387763,1707258638573,-500.0,0.00027397,3]
[313387764,1707258638584,-500.0,0.00027397,2]
[313387765,1707258638595,-500.0,0.00027397,3]
[313387766,1707258638606,-500.0,0.00027397,3]
[313387767,1707258638738,-653.38,0.00027397,3]
[313387768,1707258638751,-500.0,0.00027397,3]
[313387769,1707258638761,-3856.62,0.00027397,3]
[313387770,1707258638770,-500.0,0.00027397,3]
[313387771,1707258638779,-632.86,0.00027397,3]
[313387772,1707258638788,-802.61,0.00027397,3]
[313387773,1707258638797,-500.0,0.00027397,3]
[313387774,1707258638807,-501.39,0.00027397,3]
[313387775,1707258638815,-3725.28,0.00027397,3]
[313387776,1707258638824,-500.0,0.00027397,3]
[313387777,1707258638833,-500.0,0.00027397,3]
[313387778,1707258638842,-500.0,0.00027397,3]
[313387779,1707258638851,-500.0,0.00027397,3]
[313387780,1707258638860,-7634.04,0.00027397,3]
[313387781,1707258638869,-977.71,0.00027397,3]
[313387782,1707258638878,-519.32,0.00027397,3]
[313387783,1707258638887,-1458.55,0.00027397,3]
[313387784,1707258638896,-500.0,0.00027397,3]
[313387785,1707258638905,-500.0,0.0002742,3]
[313387786,1707258638914,-500.0,0.0002742,3]
[313387787,1707258638923,-500.0,0.00027422,3]
[313387788,1707258638932,-500.0,0.00027422,3]
[313387789,1707258638941,-5000.0,0.00027515,5]
[313387790,1707258638949,-11262.32,0.000276,2]
[313387791,1707258638958,-5080.7360473,0.00027608,2]
[313387792,1707258638972,-357.62281226,0.00027608,2]
[313387914,1707258641250,-899.82195666,0.00027397,3]
[313387933,1707258643055,-537.53804334,0.00027397,3]
[313387934,1707258643065,-3527.80501413,0.00027608,2]
[313387935,1707258643074,-500.0,0.0002767,2]
[313387936,1707258643084,-254.15819016,0.0002767,2]
[313387937,1707258643094,-318.83372582,0.0002767,2]
[313387938,1707258643108,-500.0,0.00027671,3]
[313387941,1707258643120,-500.0,0.00027671,3]
[313387943,1707258643129,-500.0,0.00027671,3]
[313387945,1707258643139,-500.0,0.00027671,3]
[313387946,1707258643148,-500.0,0.00027671,3]
[313387948,1707258643158,-767.98,0.00027671,3]
[313387950,1707258643168,-500.0,0.00027671,3]
[313387951,1707258643177,-500.0,0.00027671,3]
[313387952,1707258643187,-500.0,0.00027671,3]
[313387953,1707258643197,-908.77,0.00027671,3]
[313387954,1707258643207,-583.9,0.00027671,3]
[313387955,1707258643216,-1686.06,0.00027671,3]
[313387956,1707258643225,-500.0,0.00027671,3]
[313387957,1707258643235,-500.0,0.00027671,3]
[313387958,1707258643244,-2490.68,0.00027671,3]
[313387959,1707258643254,-504.87,0.00027671,3]
[313387960,1707258643263,-2233.19,0.00027671,3]
[313387961,1707258643272,-500.0,0.00027671,2]
[313387962,1707258643281,-500.0,0.00027671,3]
[313387963,1707258643290,-653.38,0.00027671,3]
[313387964,1707258643299,-500.0,0.00027671,3]
[313387965,1707258643309,-3856.62,0.00027671,3]
[313387966,1707258643317,-632.86,0.00027671,3]
[313387967,1707258643327,-802.61,0.00027671,3]
[313387968,1707258643336,-501.39,0.00027671,3]
[313387969,1707258643345,-3725.28,0.00027671,3]
[313387970,1707258643355,-500.0,0.00027671,3]
[313387971,1707258643364,-500.0,0.00027671,3]
[313387972,1707258643373,-500.0,0.00027671,3]
[313387973,1707258643382,-7634.04,0.00027671,3]
[313387974,1707258643391,-977.71,0.00027671,3]
[313387975,1707258643400,-519.32,0.00027671,3]
[313387976,1707258643409,-1458.55,0.00027671,3]
[313387977,1707258643418,-1437.36,0.00027671,3]
[313387978,1707258643427,-500.0,0.00027694,3]
[313387979,1707258643437,-500.0,0.00027696,3]
[313387980,1707258643445,-639.23712984,0.00027708,2]
[313387981,1707258643455,-83879.34546947,0.00027708,2]
[313387982,1707258643464,-312.67423565,0.00027809,6]
[313387983,1707258643473,-398.99871673,0.00027943,2]
[313387984,1707258643482,-727.09339258,0.00027943,2]
[313387985,1707258643490,-500.0,0.00027945,3]
[313387986,1707258643499,-500.0,0.00027945,3]
[313387987,1707258643508,-500.0,0.00027945,3]
[313387988,1707258643517,-500.0,0.00027945,3]
[313387989,1707258643526,-767.98,0.00027945,3]
[313387990,1707258643535,-500.0,0.00027945,3]
[313387991,1707258643544,-305.78,0.00027945,3]
[313387992,1707258643553,-500.0,0.00027945,3]
[313387993,1707258643562,-908.77,0.00027945,3]
[313387994,1707258643570,-583.9,0.00027945,3]
[313387995,1707258643579,-1686.06,0.00027945,3]
[313387996,1707258643589,-500.0,0.00027945,3]
[313387997,1707258643598,-500.0,0.00027945,3]
[313387998,1707258643606,-2490.68,0.00027945,3]
[313387999,1707258643615,-2233.19,0.00027945,3]
[313388000,1707258643624,-500.0,0.00027945,2]
[313388001,1707258643633,-500.0,0.00027945,3]
[313388002,1707258643643,-653.38,0.00027945,3]
[313388003,1707258643652,-500.0,0.00027945,3]
[313388004,1707258643662,-3856.62,0.00027945,3]
[313388005,1707258643671,-632.86,0.00027945,3]
[313388006,1707258643680,-802.61,0.00027945,3]
[313388007,1707258643689,-501.39,0.00027945,3]
[313388008,1707258643698,-3725.28,0.00027945,3]
[313388009,1707258643708,-500.0,0.00027945,3]
[313388010,1707258643717,-500.0,0.00027945,3]
[313388011,1707258643727,-7634.04,0.00027945,3]
[313388012,1707258643736,-977.71,0.00027945,3]
[313388013,1707258643747,-519.32,0.00027945,3]
[313388014,1707258643756,-1458.55,0.00027945,3]
[313388015,1707258643765,-1437.36,0.00027945,3]
[313388016,1707258643774,-500.0,0.00027968,3]
[313388017,1707258643783,-459.57779537,0.00028,3]
[313388018,1707258643792,-578.0,0.00028,4]
[313388019,1707258643801,-604.47965094,0.00028119,2]
[313388020,1707258643811,-500.0,0.00028219,3]
[313388021,1707258643820,-500.0,0.00028219,3]
[313388022,1707258643829,-500.0,0.00028219,3]
[313388023,1707258643838,-500.0,0.00028219,3]
[313388024,1707258643847,-767.98,0.00028219,3]
[313388025,1707258643857,-500.0,0.00028219,3]
[313388026,1707258643865,-500.0,0.00028219,3]
[313388027,1707258643875,-908.77,0.00028219,3]
[313388028,1707258643884,-583.9,0.00028219,3]
[313388029,1707258643893,-1686.06,0.00028219,3]
[313388030,1707258643903,-500.0,0.00028219,3]
[313388031,1707258643912,-500.0,0.00028219,3]
[313388032,1707258643921,-2490.68,0.00028219,3]
[313388033,1707258643930,-2233.19,0.00028219,3]
[313388034,1707258643939,-500.0,0.00028219,2]
[313388035,1707258643949,-500.0,0.00028219,3]
[313388036,1707258643958,-653.38,0.00028219,3]
[313388037,1707258643967,-500.0,0.00028219,3]
[313388038,1707258643976,-3856.62,0.00028219,3]
[313388039,1707258643985,-632.86,0.00028219,3]
[313388040,1707258643994,-802.61,0.00028219,3]
[313388041,1707258644003,-501.39,0.00028219,3]
[313388042,1707258644012,-3725.28,0.00028219,3]
[313388043,1707258644021,-500.0,0.00028219,3]
[313388044,1707258644030,-500.0,0.00028219,3]
[313388045,1707258644039,-7634.04,0.00028219,3]
[313388046,1707258644048,-977.71,0.00028219,3]
[313388047,1707258644057,-519.32,0.00028219,3]
[313388048,1707258644067,-1458.55,0.00028219,3]
[313388049,1707258644077,-1437.36,0.00028219,3]
[313388050,1707258644086,-500.0,0.00028242,3]
[313388051,1707258644095,-500.0,0.00028493,3]
[313388052,1707258644104,-500.0,0.00028493,3]
[313388053,1707258644115,-500.0,0.00028493,3]
[313388054,1707258644126,-500.0,0.00028493,3]
[313388055,1707258644136,-767.98,0.00028493,3]
[313388056,1707258644145,-500.0,0.00028493,3]
[313388057,1707258644154,-500.0,0.00028493,3]
[313388058,1707258644163,-908.77,0.00028493,3]
[313388059,1707258644173,-583.9,0.00028493,3]
[313388060,1707258644182,-1686.06,0.00028493,3]
[313388061,1707258644191,-500.0,0.00028493,3]
[313388062,1707258644201,-500.0,0.00028493,3]
[313388063,1707258644210,-2490.68,0.00028493,3]
[313388064,1707258644219,-2233.19,0.00028493,3]
[313388065,1707258644229,-500.0,0.00028493,2]
[313388066,1707258644238,-500.0,0.00028493,3]
[313388067,1707258644247,-653.38,0.00028493,3]
[313388068,1707258644257,-500.0,0.00028493,3]
[313388069,1707258644266,-3856.62,0.00028493,3]
[313388070,1707258644275,-632.86,0.00028493,3]
[313388071,1707258644285,-802.61,0.00028493,3]
[313388072,1707258644294,-501.39,0.00028493,3]
[313388073,1707258644304,-3725.28,0.00028493,3]
[313388074,1707258644314,-500.0,0.00028493,3]
[313388075,1707258644323,-500.0,0.00028493,3]
[313388076,1707258644332,-7634.04,0.00028493,3]
[313388077,1707258644342,-977.71,0.00028493,3]
[313388078,1707258644351,-519.32,0.00028493,3]
[313388079,1707258644360,-1458.55,0.00028493,3]
[313388080,1707258644370,-1437.36,0.00028493,3]
[313388081,1707258644379,-500.0,0.00028516,3]
[313388082,1707258644388,-500.0,0.00028767,3]
[313388083,1707258644397,-500.0,0.00028767,3]
[313388084,1707258644406,-500.0,0.00028767,3]
[313388085,1707258644415,-500.0,0.00028767,3]
[313388086,1707258644425,-767.98,0.00028767,3]
[313388087,1707258644434,-500.0,0.00028767,3]
[313388088,1707258644442,-500.0,0.00028767,3]
[313388089,1707258644451,-908.77,0.00028767,3]
[313388090,1707258644460,-583.9,0.00028767,3]
[313388091,1707258644469,-1686.06,0.00028767,3]
[313388092,1707258644478,-500.0,0.00028767,3]
[313388093,1707258644487,-500.0,0.00028767,3]
[313388094,1707258644496,-2490.68,0.00028767,3]
[313388095,1707258644506,-2233.19,0.00028767,3]
[313388096,1707258644515,-500.0,0.00028767,2]
[313388097,1707258644524,-500.0,0.00028767,3]
[313388098,1707258644533,-653.38,0.00028767,3]
[313388099,1707258644542,-500.0,0.00028767,3]
[313388100,1707258644551,-3856.62,0.00028767,3]
[313388101,1707258644560,-632.86,0.00028767,3]
[313388102,1707258644569,-802.61,0.00028767,3]
[313388103,1707258644579,-501.39,0.00028767,3]
[313388104,1707258644587,-3725.28,0.00028767,3]
[313388105,1707258644596,-500.0,0.00028767,3]
[313388106,1707258644605,-500.0,0.00028767,3]
[313388107,1707258644615,-7634.04,0.00028767,3]
[313388108,1707258644624,-977.71,0.00028767,3]
[313388109,1707258644633,-519.32,0.00028767,3]
[313388110,1707258644642,-1458.55,0.00028767,3]
[313388111,1707258644651,-1437.36,0.00028767,3]
[313388112,1707258644660,-500.0,0.0002879,3]
[313388113,1707258644670,-151.0,0.00028795,2]
[313388114,1707258644679,-453.95774286,0.00028999,2]
[313388115,1707258644688,-17318.0293998,0.00029,2]
[313388116,1707258644697,-23460.0,0.00029,2]
[313388117,1707258644707,-155.02325349,0.00029,2]
[313388118,1707258644716,-548.07727584,0.00029,5]
[313388119,1707258644725,-555.53547076,0.00029,7]
[313388120,1707258644734,-165.66441196,0.00029,7]
[313388121,1707258644743,-1387.83052368,0.00029,5]
[313388122,1707258644752,-302.73330867,0.00029,7]
[313388123,1707258644762,-500.0,0.00029,2]
[313388124,1707258644770,-321.89314752,0.00029,5]
[313388125,1707258644779,-576.0,0.00029,4]
[313388126,1707258644788,-179.49860241,0.0002904,2]
[313388127,1707258644797,-500.0,0.0002904,2]
[313388128,1707258644807,-467.2693407,0.0002904,2]